bitfinex/quotes_ETHUSD_20240816
["timestamp","ask_amount","ask_price","bid_price","bid_amount"]
[1723830261073,3.85958,2591.0,2590.7,0.09109852]
[1723830261638,3.85973,2590.9,2590.7,0.09109852]
[1723830262068,3.85958,2591.0,2590.7,0.09109852]
[1723830262278,3.85981,2590.8,2590.7,0.09109852]
[1723830262657,3.85953,2591.0,2590.7,0.09109852]
[1723830262868,7.71915,2591.0,2590.4,3.8604]
[1723830263068,7.71915,2591.0,2590.3,3.86047]
[1723830263069,3.85953,2591.0,2590.8,0.0910484]
[1723830263275,3.85966,2590.9,2590.8,0.0910484]
[1723830263471,3.85966,2590.9,2590.3,3.86047]
[1723830264060,3.85953,2591.0,2590.5,3.86025]
[1723830264257,3.85937,2591.1,2590.5,3.86025]
[1723830264709,3.85952,2591.0,2590.4,3.86039]
[1723830265059,3.85967,2590.9,2590.3,3.86047]
[1723830265216,3.85991,2590.8,2590.1,25.96293]
[1723830265518,3.85991,2590.8,2590.3,3.86053]
[1723830265656,4.33759689,2591.0,2590.3,3.86046]
[1723830266060,3.85996,2590.7,2590.2,3.8607]
[1723830266362,3.85996,2590.7,2590.1,6.24296]
[1723830266588,3.86028,2590.5,2590.0,7.32]
[1723830266775,3.85971,2590.9,2590.3,3.86054]
[1723830266970,3.85971,2590.9,2590.3,3.86042]
[1723830267196,3.8599,2590.8,2590.1,3.86073]
[1723830267504,3.8599,2590.8,2590.2,3.86061]
[1723830268000,3.8599,2590.8,2590.3,3.86053]
[1723830268216,6.13916,2591.1,2590.5,3.86024]
[1723830268498,6.13916,2591.1,2590.4,2.4611]
[1723830268499,6.84511089,2591.1,2590.4,2.4611]
[1723830268828,3.85968,2590.9,2590.4,2.4611]
[1723830269018,3.85952,2591.0,2590.5,3.86025]
[1723830269166,3.85937,2591.1,2590.5,3.86017]
[1723830269518,3.85958,2591.0,2590.4,6.32149]
[1723830270595,3.85958,2591.0,2590.5,3.86024]
[1723830271703,3.85958,2591.0,2590.4,6.3215]
[1723830271885,7.71917,2591.0,2590.4,6.3215]
[1723830272086,7.71922,2591.0,2590.4,6.3215]
[1723830272290,4.72353189,2591.0,2590.3,3.86045]
[1723830272490,4.72353189,2591.0,2590.3,7.72092]
[1723830272667,3.85966,2590.9,2590.3,7.72092]
[1723830273005,3.85966,2590.9,2590.3,3.86045]
[1723830273669,3.85966,2590.9,2590.3,3.86045]
[1723830273890,6.92591897,2591.4,2590.8,3.85969]
[1723830274075,3.92596897,2591.4,2590.5,12.146]
[1723830274281,3.85898,2591.4,2590.8,3.85972]
[1723830274587,2.2782,2591.6,2590.5,12.146]
[1723830274774,3.85922,2591.2,2590.7,3.85995]
[1723830274977,0.22782,2591.5,2590.7,3.85995]
[1723830275173,0.22782,2591.5,2590.8,0.09114955]
[1723830275174,7.71859,2591.2,2590.8,0.09114955]
[1723830275402,3.85929,2591.2,2590.6,3.86002]
[1723830275609,3.85929,2591.2,2590.9,0.09106024]
[1723830275610,7.71862,2591.2,2590.9,0.09106024]
[1723830275781,4.631152,2591.2,2590.6,3.86002]
[1723830275974,4.631152,2591.2,2591.0,0.09097094]
[1723830276176,4.631152,2591.2,2590.5,11.18025]
[1723830276381,3.85936,2591.1,2590.5,11.18016]
[1723830276979,3.85951,2591.0,2590.5,11.18016]
[1723830277391,3.85951,2591.0,2590.4,2.4349]
[1723830277392,7.71915,2591.0,2590.4,6.29527]
[1723830277597,4.631425,2591.0,2590.3,16.02954]
[1723830277797,7.71911,2591.0,2590.4,3.86038]
[1723830277994,3.85951,2591.0,2590.4,3.86038]
[1723830278492,3.85937,2591.1,2590.5,3.86014]
[1723830278823,3.85908,2591.3,2590.7,3.85986]
[1723830279027,6.23053,2591.4,2590.8,3.85979]
[1723830279184,3.85872,2591.6,2590.8,2.419]
[1723830279382,6.23004,2591.7,2591.1,3.85923]
[1723830279622,3.85862,2591.6,2591.1,3.85923]
[1723830279915,3.85865,2591.6,2591.1,3.85923]
[1723830280151,3.85865,2591.6,2591.0,3.85944]
[1723830280329,3.85835,2591.8,2591.1,3.85927]
[1723830280659,3.85854,2591.7,2591.1,3.85927]
[1723830280985,3.85854,2591.7,2591.2,3.85919]
[1723830281179,3.85854,2591.7,2591.1,3.85935]
[1723830281417,3.85862,2591.6,2590.9,3.85954]
[1723830281646,3.85888,2591.5,2590.9,3.85954]
[1723830281793,3.85861,2591.7,2591.0,3.85943]
[1723830282002,3.85842,2591.8,2591.2,3.85921]
[1723830282003,7.71686,2591.8,2591.2,3.85921]
[1723830282281,3.85863,2591.6,2591.0,3.85938]
[1723830282525,3.85863,2591.6,2590.5,2.3089]
[1723830282526,3.85973,2590.9,2590.5,2.3089]
[1723830282748,3.85973,2590.9,2590.1,2.51145072]
[1723830282749,3.86055,2590.3,2589.6,1.94967268]
[1723830282921,3.86055,2590.3,2589.6,6.17048]
[1723830283082,3.86029,2590.5,2589.7,3.86142]
[1723830283979,12.23528,2591.2,2589.7,3.86142]
[1723830283980,3.90195347,2591.7,2589.7,2.01396098]
[1723830284113,3.8599,2590.8,2590.1,3.86075]
[1723830284466,4.870349,2590.8,2590.1,7.7215]
[1723830284607,6.24459,2591.0,2590.2,3.86068]
[1723830284954,6.24459,2591.0,2590.1,3.86075]
[1723830284955,6.24459,2591.0,2590.4,3.86036]
[1723830285211,3.8584,2591.8,2590.6,2.4081]
[1723830285453,3.85895,2591.4,2590.6,5.4081]
[1723830285604,3.85916,2591.3,2590.6,9.26817]
[1723830285807,3.85895,2591.4,2590.7,3.85996]
[1723830285808,7.71797,2591.4,2590.7,3.85996]
[1723830286048,3.85895,2591.4,2590.6,5.4081]
[1723830286242,3.85936,2591.1,2590.5,3.86011]
[1723830286417,3.85961,2591.0,2590.3,6.29534]
[1723830287020,2.3714,2591.4,2590.7,3.85994]
[1723830287329,6.23042,2591.4,2590.7,3.85994]
[1723830287732,3.0,2591.7,2590.2,8.3153827]
[1723830287733,7.71892,2591.1,2590.4,3.8604]
[1723830287936,2.3381,2591.3,2590.4,3.8604]
[1723830287937,6.19724,2591.3,2590.4,3.8604]
[1723830288173,6.19724,2591.3,2590.5,2.4788]
[1723830288474,3.85935,2591.2,2590.5,6.33899]
[1723830289060,3.85937,2591.1,2590.5,2.4788]
[1723830289427,3.85937,2591.1,2590.4,3.86031]
[1723830289661,3.85885,2591.5,2590.4,6.434]
[1723830289980,3.85885,2591.5,2590.6,3.86001]
[1723830290260,3.85885,2591.5,2590.4,6.434]
[1723830290261,3.85911,2591.3,2590.7,3.85985]
[1723830290459,7.71773,2591.5,2590.7,3.9509795]
[1723830290630,3.85885,2591.5,2590.8,3.8598]
[1723830290835,3.85891,2591.4,2590.8,3.8598]
[1723830291058,3.85891,2591.4,2590.9,0.09095088]
[1723830291224,6.1968,2591.6,2590.9,3.95051088]
[1723830291420,2.3381,2591.6,2590.3,2.4788]
[1723830291771,3.8581,2592.0,2590.9,2.4788]
[1723830291772,2.3381,2592.0,2590.9,2.4788]
[1723830292059,3.85885,2591.5,2590.9,3.85961]
[1723830292255,3.85855,2591.7,2591.0,3.95036158]
[1723830292422,3.85855,2591.7,2591.0,3.95028158]
[1723830292855,3.8587,2591.6,2591.0,3.95028158]
[1723830293257,3.85855,2591.7,2591.0,3.95028158]
[1723830293830,3.85862,2591.6,2591.0,3.95028158]
[1723830294137,3.85855,2591.7,2591.0,7.80968158]
[1723830294355,3.85869,2591.6,2591.0,3.95027158]
[1723830294520,3.85855,2591.7,2591.0,3.95027158]
[1723830294926,7.71712,2591.7,2591.0,3.95027158]
[1723830295257,3.85855,2591.7,2591.0,3.95027158]
[1723830295644,3.85908,2591.3,2591.0,0.09086158]
[1723830295977,3.85908,2591.3,2590.7,11.17994]
[1723830296298,6.33113,2591.5,2591.1,0.09077228]
[1723830296299,3.85921,2591.2,2591.1,0.09077228]
[1723830296514,7.71851,2591.2,2590.5,27.20938]
[1723830296777,3.85907,2591.3,2590.6,3.8601]
[1723830296976,3.85909,2591.3,2590.6,0.09121882]
[1723830297137,3.85909,2591.3,2590.8,3.85972]
[1723830297344,3.859,2591.4,2590.8,3.85972]
[1723830297543,3.859,2591.4,2590.9,0.09095088]
[1723830298174,7.718,2591.4,2590.9,0.09095088]
[1723830298695,2.4723,2591.5,2590.9,0.09095088]
[1723830298696,3.85923,2591.2,2590.9,0.09095088]
[1723830299077,3.85901,2591.4,2590.8,3.85977]
[1723830299279,3.85901,2591.4,2590.9,0.09099214]
[1723830299615,2.4723,2591.5,2590.5,19.489]
[1723830299815,3.06703064,2591.7,2590.1,14.40852907]
[1723830299816,7.71954,2590.9,2590.1,14.40852907]
[1723830299953,2.4147,2591.4,2590.4,3.8604]
[1723830300151,3.85961,2591.0,2590.3,3.86047]
[1723830300364,3.85961,2591.0,2590.4,3.86036]
[1723830300588,3.85981,2590.8,2590.1,14.40852907]
[1723830300958,9.27389,2591.3,2590.6,3.86009]
[1723830301159,3.85929,2591.2,2590.6,3.86009]
[1723830301480,3.85952,2591.0,2590.4,3.86029]
[1723830301683,3.85952,2591.0,2590.1,2.4479]
[1723830301882,1.313317,2591.2,2590.1,6.30865]
[1723830301883,3.85997,2590.7,2590.1,6.30865]
[1723830302047,3.86013,2590.6,2590.1,2.4479]
[1723830302253,3.86013,2590.6,2590.0,20.49986907]
[1723830302493,2.3086,2590.8,2590.1,3.86084]
[1723830302691,3.85961,2591.0,2590.2,3.86067]
[1723830302991,3.85961,2591.0,2590.2,7.72122]
[1723830302992,3.85966,2590.9,2590.2,7.72122]
[1723830303218,6.2013,2591.2,2590.1,6.7479827]
[1723830303507,7.71807,2591.4,2590.7,3.85988]
[1723830303653,3.85915,2591.3,2590.7,3.85988]
[1723830303853,3.85901,2591.4,2590.7,3.85988]
[1723830304417,3.85901,2591.4,2590.6,2.3978]
[1723830304559,3.85938,2591.1,2590.6,2.3978]
[1723830304762,3.85962,2591.0,2590.4,3.86039]
[1723830305179,3.85917,2591.3,2590.5,0.09118674]
[1723830305493,3.85917,2591.3,2590.7,3.85995]
[1723830305690,3.85915,2591.3,2590.5,3.86015]
[1723830305895,3.85944,2591.1,2590.8,0.09091877]
[1723830306063,3.85944,2591.1,2590.5,7.72032]
[1723830306064,7.71836,2591.3,2590.5,3.86015]
[1723830306259,3.85922,2591.2,2590.9,0.09082947]
[1723830306460,3.85886,2591.5,2590.8,2.4725]
[1723830306687,3.92558064,2591.7,2591.0,3.95015017]
[1723830306991,3.85889,2591.5,2591.1,0.09065087]
[1723830307399,3.85889,2591.5,2590.9,3.85955]
[1723830307560,3.85889,2591.5,2591.2,0.09056159]
[1723830307766,3.85885,2591.5,2590.8,2.4725]
[1723830307983,3.85902,2591.4,2591.3,0.09047231]
[1723830308164,3.85902,2591.4,2590.8,26.0523]
[1723830308378,3.85885,2591.5,2591.3,0.09047231]
[1723830308697,3.85892,2591.4,2590.8,23.5798]
[1723830309067,3.85961,2591.0,2590.8,19.72]
[1723830309262,3.85954,2591.0,2590.8,19.72]
[1723830309465,3.85948,2591.1,2590.8,19.72]
[1723830310189,7.71897,2591.1,2590.8,19.72]
[1723830310402,3.85958,2591.0,2590.8,19.72]
[1723830310711,3.85966,2590.9,2590.8,19.72]
[1723830311014,3.85966,2590.9,2590.4,12.169]
[1723830311303,3.85966,2590.9,2590.3,30.90042]
[1723830311797,3.85952,2591.0,2590.4,3.8604]
[1723830312100,3.85952,2591.0,2590.3,30.9004]
[1723830312101,3.85966,2590.9,2590.3,30.9004]
[1723830312301,3.85966,2590.9,2590.3,34.76087]
[1723830312609,3.85952,2591.0,2590.3,30.9004]
[1723830312774,3.85952,2591.0,2590.4,3.86039]
[1723830312974,3.85952,2591.0,2590.3,27.04]
[1723830313191,3.85983,2590.8,2590.3,27.04]
[1723830314365,3.86005,2590.7,2590.3,27.04]
[1723830315314,3.86023,2590.6,2590.0,30.9009]
[1723830315680,3.86043,2590.4,2590.0,27.04]
[1723830316404,3.85987,2590.8,2590.0,27.04]
[1723830316564,3.85987,2590.8,2590.2,3.86069]
[1723830316762,7.71981,2590.8,2590.2,3.86069]
[1723830316971,3.85998,2590.7,2590.1,3.86071]
[1723830317267,3.85981,2590.8,2590.2,3.86057]
[1723830317467,7.71971,2590.8,2590.2,3.86057]
[1723830317723,3.0,2591.1,2590.2,3.86057]
[1723830317724,2.3687,2591.2,2590.2,3.86057]
[1723830317872,3.85966,2590.9,2590.4,3.8604]
[1723830318073,3.85966,2590.9,2590.3,3.86055]
[1723830318304,3.85909,2591.3,2590.5,3.86013]
[1723830318305,3.85946,2591.1,2590.5,3.86013]
[1723830318814,3.85946,2591.1,2590.4,3.8604]
[1723830318815,3.85946,2591.1,2590.6,3.86009]
[1723830319001,2.3687,2591.5,2590.4,3.86032]
[1723830319171,7.71911,2591.0,2590.4,3.86032]
[1723830319373,3.85952,2591.0,2590.4,7.72065]
[1723830319612,3.85952,2591.0,2590.5,3.86024]
[1723830320025,3.85952,2591.0,2590.4,3.86032]
[1723830320215,7.71915,2591.0,2590.6,0.09110154]
[1723830320387,7.71915,2591.0,2590.4,3.86031]
[1723830320714,2.3687,2591.2,2590.3,11.18048]
[1723830320870,3.85973,2590.9,2590.3,11.18048]
[1723830321075,3.85973,2590.9,2590.4,0.09128021]
[1723830321278,7.71952,2590.9,2590.4,0.09128021]
[1723830321716,3.85981,2590.8,2590.4,0.09128021]
[1723830323435,3.86003,2590.7,2590.4,0.09128021]
[1723830324192,7.71948,2590.9,2590.4,0.09128021]
[1723830324514,3.85922,2591.2,2590.7,3.85994]
[1723830324887,3.85945,2591.1,2590.8,0.09092291]
[1723830325083,3.85945,2591.1,2590.6,6.25298]
[1723830325287,6.24928,2591.5,2590.9,3.85965]
[1723830325547,3.85888,2591.5,2590.9,3.85965]
[1723830325705,3.85894,2591.4,2591.0,0.0907443]
[1723830325918,3.85894,2591.4,2590.8,3.85966]
[1723830326233,3.85894,2591.4,2590.9,3.9504936]
[1723830326444,3.85909,2591.3,2590.9,0.0908336]
[1723830326746,3.85909,2591.3,2590.7,3.85988]
[1723830326889,7.71779,2591.5,2590.8,3.85972]
[1723830327089,3.85888,2591.5,2591.0,0.09074633]
[1723830327288,3.85888,2591.5,2590.9,3.95048563]
[1723830327488,3.85888,2591.5,2591.0,0.09074633]
[1723830327489,3.85885,2591.5,2591.0,0.09074633]
[1723830327745,3.85894,2591.4,2591.0,0.09074633]
[1723830327949,3.85911,2591.3,2590.7,3.85988]
[1723830328092,3.85911,2591.3,2591.1,0.09065704]
[1723830328291,3.85911,2591.3,2590.8,3.85981]
[1723830328491,3.85911,2591.3,2590.9,0.09083563]
[1723830328805,3.85891,2591.4,2590.9,3.95048563]
[1723830328988,6.4102594,2591.8,2590.9,3.95039563]
[1723830328989,6.4103094,2591.8,2590.9,3.95039563]
[1723830329191,0.0669794,2591.8,2591.3,3.85898]
[1723830329436,0.0669794,2591.8,2591.0,2.41088472]
[1723830329437,3.85779,2592.2,2591.4,3.93605613]
[1723830329664,3.85811,2592.0,2591.4,3.9492192]
[1723830329821,3.85811,2592.0,2591.4,7.8080592]
[1723830329997,3.85787,2592.1,2591.5,3.85874]
[1723830330334,3.85787,2592.1,2591.5,3.94903994]
[1723830330647,3.85803,2592.0,2591.5,0.09029994]
[1723830330991,4.475982,2592.2,2591.5,0.09029994]
[1723830330992,3.85832,2591.8,2591.5,0.09029994]
[1723830331192,3.85889,2591.5,2591.3,7.32]
[1723830331492,3.85891,2591.4,2590.8,23.34871]
[1723830331727,3.85916,2591.3,2590.8,7.32]
[1723830331898,4.245051,2591.3,2590.8,7.32]
[1723830332311,3.85916,2591.3,2590.8,7.32]
[1723830332518,3.85892,2591.4,2590.8,11.1797]
[1723830332896,3.859,2591.4,2590.8,11.1797]
[1723830333052,3.85908,2591.3,2590.8,11.1797]
[1723830333551,3.859,2591.4,2590.8,11.1797]
[1723830333552,7.718,2591.4,2590.8,11.1797]
[1723830333760,0.385832,2591.7,2590.8,11.1797]
[1723830334051,0.2709632,2591.6,2590.8,11.1797]
[1723830334255,3.85884,2591.5,2590.8,13.48727]
[1723830334552,3.85884,2591.5,2590.9,3.85957]
[1723830334759,3.85884,2591.5,2591.0,3.8595]
[1723830335061,3.85884,2591.5,2591.0,3.95015965]
[1723830336132,3.85884,2591.5,2591.0,0.09065965]
[1723830336355,7.71773,2591.5,2591.0,0.09065965]
[1723830336512,3.85884,2591.5,2591.0,0.09065965]
[1723830336729,7.71771,2591.5,2591.0,0.09065965]
[1723830337174,3.85914,2591.3,2591.0,0.09065965]
[1723830337383,3.8592,2591.3,2590.8,7.32]
[1723830337575,3.85923,2591.2,2591.1,0.09055179]
[1723830337882,3.85906,2591.3,2590.8,7.32]
[1723830338044,3.85906,2591.3,2591.1,0.09055179]
[1723830338221,3.85906,2591.3,2590.8,7.32]
[1723830338424,3.85906,2591.3,2591.2,0.0904625]
[1723830338635,3.85906,2591.3,2590.8,7.32]
[1723830339172,3.85906,2591.3,2590.9,0.09073038]
[1723830339857,3.85951,2591.0,2590.9,0.09073038]
[1723830340204,10.13372,2591.0,2590.9,0.09073038]
[1723830340537,3.85988,2590.8,2590.2,3.86069]
[1723830340826,7.71982,2590.8,2590.3,0.09122919]
[1723830341030,3.85988,2590.8,2590.0,6.11815]
[1723830341237,3.85988,2590.8,2590.4,0.09113985]
[1723830341238,3.86018,2590.6,2590.4,0.09113985]
[1723830341523,3.86018,2590.6,2590.0,6.11812]
[1723830341830,3.86001,2590.7,2590.1,3.8608]
[1723830342119,3.85958,2591.0,2590.4,3.86033]
[1723830342429,3.85958,2591.0,2590.5,0.09105052]
[1723830342739,3.86003,2590.7,2590.5,0.09105052]
[1723830342876,3.85952,2591.0,2590.5,0.09105052]
[1723830343076,3.85952,2591.0,2590.4,3.8604]
[1723830343277,3.8595,2591.1,2590.6,0.09096119]
[1723830343588,3.8595,2591.1,2590.7,0.09087187]
[1723830343791,5.4147,2591.3,2590.4,2.3867]
[1723830344025,2.4147,2591.3,2590.8,0.09078255]
[1723830344251,2.4147,2591.3,2590.6,3.86]
[1723830344252,3.0,2591.2,2590.6,3.86]
[1723830344549,7.71839,2591.3,2590.9,0.09069325]
[1723830344848,7.71771,2591.5,2590.9,3.85956]
[1723830345133,7.71771,2591.5,2590.8,2.4361]
[1723830345134,3.85893,2591.4,2591.0,0.09060395]
[1723830345486,3.85893,2591.4,2590.8,2.4361]
[1723830345713,3.85893,2591.4,2591.1,0.09051465]
[1723830346026,3.85872,2591.6,2591.2,0.09042537]
[1723830346027,7.71743,2591.6,2591.2,0.09042537]
[1723830346205,7.71743,2591.6,2590.9,3.85952]
[1723830346206,3.85877,2591.5,2590.9,3.85952]
[1723830346421,3.85877,2591.5,2591.3,0.09033609]
[1723830346727,3.85892,2591.4,2590.7,3.85985]
[1723830347303,3.85892,2591.4,2590.9,3.85965]
[1723830347503,3.85892,2591.4,2590.8,3.8598]
[1723830348131,3.85914,2591.3,2590.7,3.85985]
[1723830349098,0.53247,2591.7,2590.6,9.5814]
[1723830349099,3.85891,2591.5,2590.6,9.5814]
[1723830349295,3.85891,2591.5,2590.9,3.85959]
[1723830349621,3.85891,2591.5,2591.0,3.85947]
[1723830350033,3.85891,2591.5,2591.1,0.09051465]
[1723830350597,7.71655,2591.9,2591.1,2.52541465]
[1723830350838,7.71655,2591.9,2591.3,3.85906]
[1723830350839,3.85824,2591.9,2591.3,3.85906]
[1723830351048,0.06697062,2592.1,2591.4,3.85891]
[1723830351049,3.92489062,2592.1,2591.4,3.85891]
[1723830351197,3.8582,2591.9,2591.4,3.94915681]
[1723830351503,3.8582,2591.9,2591.4,0.09024681]
[1723830351504,3.85859,2591.7,2591.4,0.09024681]
[1723830351734,2.3454,2591.8,2590.7,2.4349]
[1723830351735,3.85832,2591.8,2591.2,3.85913]
[1723830351907,3.85816,2592.0,2591.2,2.4513]
[1723830352258,3.85817,2591.9,2591.3,3.94930609]
[1723830352849,3.85815,2592.0,2591.3,3.94930609]
[1723830352850,3.85815,2592.0,2591.4,3.8589]
[1723830353016,3.85813,2592.0,2591.5,3.85875]
[1723830353216,3.85783,2592.2,2591.5,3.94879755]
[1723830353217,3.85781,2592.2,2591.5,3.94879755]
[1723830353522,2.2734,2592.4,2591.5,3.94879755]
[1723830353523,3.85765,2592.3,2591.7,3.85846]
[1723830353712,3.85774,2592.2,2591.6,2.4513]
[1723830353909,3.85774,2592.2,2591.8,0.08988979]
[1723830354146,6.13091,2592.4,2591.9,0.08980055]
[1723830354147,2.2734,2592.4,2591.9,0.08980055]
[1723830354315,3.85838,2591.8,2591.3,2.4543]
[1723830354849,3.85838,2591.8,2591.4,0.09024681]
[1723830355539,3.85802,2592.0,2591.4,0.09024681]
[1723830355843,3.85761,2592.3,2591.6,3.85855]
[1723830356049,3.85721,2592.6,2591.8,3.85824]
[1723830356581,3.85744,2592.4,2591.9,0.08967265]
[1723830356790,3.8573,2592.5,2591.7,3.85836]
[1723830356962,7.71445,2592.6,2591.9,3.85816]
[1723830357283,3.85769,2592.3,2591.6,2.4287]
[1723830357454,3.85769,2592.3,2592.0,0.08958342]
[1723830357656,4.874395,2592.5,2591.8,3.8583]
[1723830357871,3.85744,2592.4,2592.1,0.0894942]
[1723830358197,3.85744,2592.4,2592.2,0.08940498]
[1723830358352,3.85744,2592.4,2591.8,3.8583]
[1723830358694,3.85737,2592.5,2592.3,0.08931577]
[1723830358849,3.85737,2592.5,2591.8,3.85823]
[1723830359056,7.7136,2592.9,2592.0,3.85787]
[1723830359291,7.7136,2592.9,2592.2,3.85761]
[1723830359292,3.85678,2592.9,2592.2,3.85761]
[1723830359472,2.42349364,2593.0,2592.1,0.0894942]
[1723830359473,2.3565,2593.0,2592.1,0.0894942]
[1723830359682,3.8571,2592.7,2592.3,0.08931577]
[1723830360058,3.85708,2592.7,2592.0,3.8579]
[1723830360258,3.85708,2592.7,2592.4,0.08922657]
[1723830360466,3.85713,2592.6,2591.9,2.3799]
[1723830360706,3.85713,2592.6,2592.5,0.08913737]
[1723830360918,0.385708,2592.7,2591.9,2.3799]
[1723830360919,3.8574,2592.5,2591.9,2.3799]
[1723830361221,3.85758,2592.3,2591.9,2.3799]
[1723830361553,3.85758,2592.3,2591.6,6.12201]
[1723830362157,7.71529,2592.3,2591.6,6.12201]
[1723830362556,3.85711,2592.7,2591.9,3.85807]
[1723830362753,3.85706,2592.7,2592.1,2.4579]
[1723830362956,3.85679,2592.9,2592.2,3.85771]
[1723830363196,2.4027907,2593.2,2592.3,3.85749]
[1723830363197,3.85654,2593.0,2592.3,3.85749]
[1723830363355,3.85648,2593.1,2592.4,3.85741]
[1723830363560,3.85654,2593.0,2592.2,3.85758]
[1723830363756,3.85647,2593.1,2592.4,3.85731]
[1723830363991,3.85647,2593.1,2592.4,7.71466]
[1723830364295,2.3358,2593.2,2592.1,2.4579]
[1723830364497,3.85616,2593.3,2592.6,3.85712]
[1723830364704,3.85616,2593.3,2592.7,3.85698]
[1723830364993,3.85616,2593.3,2592.8,0.08886982]
[1723830365192,3.85616,2593.3,2592.5,2.2868]
[1723830365193,3.85646,2593.1,2592.5,2.2868]
[1723830365401,7.71294,2593.1,2592.9,0.08878065]
[1723830365561,3.85653,2593.0,2592.3,3.85757]
[1723830365759,4.6663156,2593.1,2592.4,3.94664657]
[1723830365964,3.85646,2593.1,2592.4,3.94656657]
[1723830366165,7.71292,2593.1,2592.4,3.94656657]
[1723830366485,3.92257016,2593.7,2592.8,3.85683]
[1723830366686,3.85558,2593.7,2592.9,3.85666]
[1723830366904,2.4778,2593.8,2592.9,0.08878065]
[1723830367088,7.71259,2593.2,2592.9,0.08878065]
[1723830367263,3.85624,2593.2,2592.5,6.8572]
[1723830367462,3.85624,2593.2,2593.0,0.08869149]
[1723830367660,3.85624,2593.2,2592.4,6.26942]
[1723830367859,7.71246,2593.2,2593.1,0.08860233]
[1723830368186,3.85669,2592.9,2592.2,3.85764]
[1723830368398,3.85669,2592.9,2592.2,23.57764]
[1723830368705,3.85698,2592.7,2592.3,0.08931577]
[1723830368890,4.242359,2592.9,2592.3,0.08931577]
[1723830369064,3.85687,2592.8,2592.1,25.91765]
[1723830369268,3.85687,2592.8,2592.4,0.08922657]
[1723830369464,4.45767525,2592.8,2592.1,25.91765]
[1723830369671,3.85669,2592.9,2592.5,0.08913737]
[1723830369891,3.85684,2592.8,2592.2,3.85772]
[1723830370091,3.85698,2592.7,2592.6,0.08883581]
[1723830370565,3.85698,2592.7,2592.1,22.0598]
[1723830370766,3.85698,2592.7,2592.6,0.08883581]
[1723830371027,7.71356,2592.9,2592.1,22.0598]
[1723830371165,3.0,2593.2,2592.6,0.08883581]
[1723830371365,6.85639,2593.1,2592.4,3.85742]
[1723830371561,3.85639,2593.1,2592.7,0.08874663]
[1723830371794,3.0,2593.2,2592.1,22.0598]
[1723830371795,3.0,2593.2,2592.6,6.3504]
[1723830372004,3.85624,2593.2,2592.8,0.08865745]
[1723830372166,3.85624,2593.2,2592.6,2.4933]
[1723830372367,3.8564,2593.1,2592.7,0.08874663]
[1723830372714,3.85623,2593.2,2592.7,0.08874663]
[1723830373489,7.267367,2593.3,2592.7,0.08874663]
[1723830373690,3.85624,2593.2,2592.7,0.08874663]
[1723830375715,3.8564,2593.1,2592.7,0.08874663]
[1723830376010,3.85653,2593.0,2592.7,0.08874663]
[1723830376306,1.1123607,2593.1,2592.5,19.72]
[1723830376307,3.85683,2592.8,2592.5,19.72]
[1723830376521,3.85713,2592.6,2592.5,19.72]
[1723830376802,3.85713,2592.6,2591.8,7.32]
[1723830376803,3.85745,2592.4,2591.8,7.32]
[1723830377390,2.670783,2592.8,2591.8,7.32]
[1723830377391,3.85795,2592.1,2591.8,7.32]
[1723830377582,2.2851,2592.3,2591.8,7.32]
[1723830377583,3.85817,2591.9,2591.8,7.32]
[1723830377773,3.85803,2592.0,2591.8,7.32]
[1723830378039,3.85751,2592.4,2591.8,7.32]
[1723830378208,3.85745,2592.4,2591.8,7.32]
[1723830378371,3.85753,2592.4,2591.8,7.32]
[1723830378571,3.85765,2592.3,2591.8,7.32]
[1723830378771,3.85753,2592.4,2591.8,7.32]
[1723830378967,6.14229,2592.6,2591.9,3.85816]
[1723830379197,3.0,2592.5,2591.8,13.51194]
[1723830379478,3.0,2592.5,2591.8,9.6537]
[1723830379676,3.85729,2592.5,2591.8,13.51195]
[1723830380013,3.85729,2592.5,2591.9,3.94166778]
[1723830380218,3.85729,2592.5,2591.9,0.08350778]
[1723830380710,3.85729,2592.5,2591.9,3.94165778]
[1723830380928,2.2851,2592.6,2591.9,3.94165778]
[1723830380929,3.85715,2592.6,2591.9,3.94165778]
[1723830381107,6.85706,2592.7,2591.9,3.94156778]
[1723830381280,3.85714,2592.6,2591.9,3.94156778]
[1723830381476,0.385683,2592.8,2591.9,0.08350778]
[1723830381477,3.85695,2592.8,2591.9,0.08350778]
[1723830381797,3.85613,2593.3,2592.3,2.3337]
[1723830381798,2.2851,2593.2,2592.3,2.3337]
[1723830381997,3.8564,2593.1,2592.5,3.85717]
[1723830382402,3.85624,2593.2,2592.6,0.0828833]
[1723830382791,3.8564,2593.1,2592.6,0.0828833]
[1723830383141,3.8564,2593.1,2592.3,6.19115]
[1723830383604,3.8564,2593.1,2592.4,3.94047169]
[1723830383927,3.85654,2593.0,2592.4,0.08306169]
[1723830384132,3.85669,2592.9,2592.4,0.08306169]
[1723830384513,0.771294,2593.0,2592.4,0.08306169]
[1723830384714,3.85655,2593.0,2592.4,0.08306169]
[1723830384901,10.1101,2593.5,2592.4,0.08306169]
[1723830385090,3.85691,2592.8,2592.4,0.08306169]
[1723830385297,0.385691,2592.7,2592.3,2.3337]
[1723830385559,3.85691,2592.8,2592.5,0.08297249]
[1723830385731,3.85706,2592.7,2592.4,0.08306169]
[1723830386027,3.85706,2592.7,2592.1,6.19766]
[1723830386028,3.85706,2592.7,2592.5,0.08297249]
[1723830386205,3.85706,2592.7,2592.1,6.19766]
[1723830386407,3.85706,2592.7,2592.6,0.0828833]
[1723830386607,4.628457,2592.7,2592.1,6.19766]
[1723830386801,3.85691,2592.8,2592.1,6.19766]
[1723830386802,3.85691,2592.8,2592.6,0.0828833]